fUSD/lending_fUSD_20250306
["ID","MTS","AMOUNT","RATE_DAILY","PERIOD"]
[355541307,1741248642360,-500.0,0.00011556,2]
[355541308,1741248642369,-660.42,0.00011556,2]
[355541309,1741248642379,-332.1,0.00011556,2]
[355541310,1741248642397,-500.0,0.00011556,2]
[355541311,1741248642409,-500.0,0.00011556,2]
[355541312,1741248642419,-505.42165781,0.00011556,2]
[355541313,1741248642430,-500.0,0.00011556,2]
[355541314,1741248642440,-941.74,0.00011556,2]
[355541315,1741248642450,-500.0,0.00011556,2]
[355541316,1741248642461,-224.97873158,0.00011556,2]
[355541317,1741248642471,-500.0,0.00011556,2]
[355541318,1741248642481,-500.0,0.00011556,2]
[355541319,1741248642491,-500.0,0.00011556,2]
[355541320,1741248642501,-503.07299347,0.00011556,2]
[355541321,1741248642512,-500.0,0.00011556,2]
[355541322,1741248642523,-502.92538668,0.00011556,2]
[355541323,1741248642533,-500.0,0.00011556,2]
[355541324,1741248642543,-839.65,0.00011556,2]
[355541325,1741248642554,-500.0,0.00011556,2]
[355541326,1741248642564,-1198.42,0.00011556,2]
[355541327,1741248642574,-500.0,0.00011556,2]
[355541328,1741248642584,-546.46,0.00011556,2]
[355541329,1741248642594,-500.0,0.00011556,2]
[355541330,1741248642604,-500.0,0.00011556,2]
[355541331,1741248642614,-500.0,0.00011556,2]
[355541333,1741248642625,-4137.68,0.00011556,2]
[355541335,1741248642636,-500.0,0.00011556,2]
[355541337,1741248642646,-500.0,0.00011556,2]
[355541339,1741248642657,-500.0,0.00011556,2]
[355541341,1741248642667,-543.04282604,0.00011556,2]
[355541343,1741248642678,-788.17,0.00011556,2]
[355541345,1741248642689,-500.0,0.00011556,2]
[355541347,1741248642699,-327.98,0.00011556,2]
[355541349,1741248642709,-500.0,0.00011556,2]
[355541350,1741248642719,-509.47454863,0.00011556,2]
[355541351,1741248642729,-500.0,0.00011556,2]
[355541352,1741248642738,-1281.21,0.00011556,2]
[355541353,1741248642748,-500.0,0.00011556,2]
[355541356,1741248642760,-500.0,0.00011556,2]
[355541358,1741248642770,-1348.71,0.00011556,2]
[355541361,1741248642781,-500.0,0.00011556,2]
[355541363,1741248642791,-1192.94,0.00011556,2]
[355541364,1741248642802,-502.46229094,0.00011556,2]
[355541365,1741248642812,-500.0,0.00011556,2]
[355541366,1741248642822,-506.73131647,0.00011556,2]
[355541367,1741248642832,-500.0,0.00011556,2]
[355541368,1741248642843,-500.0,0.00011556,2]
[355541369,1741248642853,-218.84098029,0.00011556,2]
[355541370,1741248642863,-3094.0,0.00011556,2]
[355541371,1741248642872,-1870.05,0.00011556,2]
[355541372,1741248642882,-169.01812185,0.00011556,2]
[355541373,1741248642892,-500.0,0.00011556,2]
[355541374,1741248642902,-500.0,0.00011556,2]
[355541375,1741248642912,-2055.75,0.00011556,2]
[355541376,1741248642921,-500.0,0.00011556,2]
[355541377,1741248642933,-501.39379348,0.00011556,2]
[355541378,1741248642943,-500.0,0.00011556,2]
[355541379,1741248642958,-2808.84,0.00011556,2]
[355541380,1741248642970,-1346.88,0.00011556,2]
[355541381,1741248642980,-500.0,0.00011556,2]
[355541382,1741248642989,-500.0,0.00011556,2]
[355541383,1741248642999,-500.0,0.00011556,2]
[355541384,1741248643012,-725.44,0.00011556,2]
[355541385,1741248643022,-500.0,0.00011556,2]
[355541386,1741248643032,-500.0,0.00011556,2]
[355541387,1741248643042,-500.0,0.00011556,2]
[355541388,1741248643052,-500.0,0.00011556,2]
[355541389,1741248643063,-1144.03,0.00011556,2]
[355541390,1741248643073,-1787.81,0.00011556,2]
[355541391,1741248643086,-500.0,0.00011556,2]
[355541392,1741248643101,-500.0,0.00011556,2]
[355541393,1741248643116,-500.0,0.00011556,2]
[355541394,1741248643127,-500.0,0.00011556,2]
[355541395,1741248643137,-2314.07,0.00011556,2]
[355541396,1741248643147,-812.54,0.00011556,2]
[355541397,1741248643157,-502.54395182,0.00011556,2]
[355541398,1741248643166,-500.0,0.00011556,2]
[355541399,1741248643176,-500.0,0.00011556,2]
[355541400,1741248643187,-500.0,0.00011556,2]
[355541401,1741248643198,-500.0,0.00011556,2]
[355541402,1741248643207,-500.0,0.00011556,2]
[355541403,1741248643217,-500.0,0.00011556,2]
[355541404,1741248643227,-500.0,0.00011556,2]
[355541405,1741248643237,-507.5825995,0.00011556,2]
[355541406,1741248643247,-3095.04,0.00011556,2]
[355541407,1741248643258,-500.0,0.00011556,2]
[355541408,1741248643268,-500.0,0.00011556,2]
[355541409,1741248643278,-500.0,0.00011556,2]
[355541410,1741248643288,-500.0,0.00011556,2]
[355541411,1741248643298,-1090.59,0.00011556,2]
[355541413,1741248643308,-500.0,0.00011556,2]
[355541415,1741248643318,-500.0,0.00011556,2]
[355541417,1741248643328,-1253.88,0.00011556,2]
[355541419,1741248643338,-500.0,0.00011556,2]
[355541421,1741248643347,-156.24366374,0.00011556,2]
[355541423,1741248643357,-500.0,0.00011556,2]
[355541425,1741248643367,-500.0,0.00011556,2]
[355541427,1741248643376,-505.07127369,0.00011556,2]
[355541429,1741248643387,-500.0,0.00011556,2]
[355541432,1741248643396,-500.0,0.00011556,2]
[355541434,1741248643406,-758.72,0.00011556,2]
[355541437,1741248643415,-500.0,0.00011556,2]
[355541440,1741248643428,-500.0,0.00011556,2]
[355541443,1741248643438,-3602.79,0.00011556,2]
[355541446,1741248643448,-501.01516317,0.00011556,2]
[355541448,1741248643458,-771.29,0.00011556,2]
[355541450,1741248643468,-500.0,0.00011556,2]
[355541452,1741248643477,-737.11,0.00011556,2]
[355541454,1741248643487,-500.0,0.00011556,2]
[355541456,1741248643496,-1207.48,0.00011556,2]
[355541458,1741248643508,-500.0,0.00011556,2]
[355541460,1741248643518,-500.0,0.00011556,2]
[355541462,1741248643528,-500.0,0.00011556,2]
[355541464,1741248643537,-500.0,0.00011556,2]
[355541466,1741248643547,-1212.76122481,0.00011556,2]
[355541486,1741248643853,-146.92877519,0.00011556,2]
[355541487,1741248643866,-1540.98,0.00011556,2]
[355541488,1741248643877,-572.16236928,0.00011556,2]
[355541489,1741248643887,-1399.77,0.00011556,2]
[355541490,1741248643897,-500.0,0.00011556,2]
[355541491,1741248643906,-799.98,0.00011556,2]
[355541492,1741248643916,-500.0,0.00011556,2]
[355541493,1741248643925,-263.88556829,0.00011556,2]
[355541494,1741248643935,-500.0,0.00011556,2]
[355541495,1741248643945,-500.0,0.00011556,2]
[355541496,1741248643955,-710.34,0.00011556,2]
[355541497,1741248643965,-867.12,0.00011556,2]
[355541498,1741248643975,-500.0,0.00011556,2]
[355541499,1741248643984,-585.21,0.00011556,2]
[355541500,1741248643995,-500.0,0.00011556,2]
[355541501,1741248644006,-500.0,0.00011556,2]
[355541502,1741248644015,-500.0,0.00011556,2]
[355541503,1741248644025,-1660.63,0.00011556,2]
[355541504,1741248644036,-500.0,0.00011556,2]
[355541505,1741248644046,-511.86387147,0.00011556,2]
[355541506,1741248644056,-500.0,0.00011556,2]
[355541507,1741248644066,-500.96,0.00011556,2]
[355541508,1741248644076,-500.75932103,0.00011556,2]
[355541509,1741248644086,-1658.78,0.00011556,2]
[355541510,1741248644096,-500.0,0.00011556,2]
[355541511,1741248644110,-500.0,0.00011556,2]
[355541512,1741248644120,-507.82539384,0.00011556,2]
[355541513,1741248644130,-500.0,0.00011556,2]
[355541514,1741248644141,-500.0,0.00011556,2]
[355541515,1741248644153,-1196.9,0.00011556,2]
[355541516,1741248644163,-500.0,0.00011556,2]
[355541517,1741248644173,-276.83645102,0.00011556,2]
[355541518,1741248644182,-1393.39,0.00011556,2]
[355541519,1741248644193,-3835.39,0.00011556,2]
[355541520,1741248644203,-299.39827446,0.00011556,2]
[355541521,1741248644214,-502.80509123,0.00011556,2]
[355541522,1741248644224,-500.0,0.00011556,2]
[355541523,1741248644234,-703.61,0.00011556,2]
[355541524,1741248644244,-500.0,0.00011556,2]
[355541525,1741248644255,-500.0,0.00011556,2]
[355541526,1741248644264,-500.0,0.00011556,2]
[355541527,1741248644274,-500.0,0.00011556,2]
[355541528,1741248644283,-500.0,0.00011556,2]
[355541529,1741248644294,-500.0,0.00011556,2]
[355541530,1741248644305,-500.0,0.00011556,2]
[355541531,1741248644316,-500.0,0.00011556,2]
[355541532,1741248644326,-500.0,0.00011556,2]
[355541533,1741248644336,-500.0,0.00011556,2]
[355541534,1741248644346,-550.17,0.00011556,2]
[355541535,1741248644358,-3190.77,0.00011556,2]
[355541536,1741248644368,-500.0,0.00011556,2]
[355541537,1741248644379,-500.0,0.00011556,2]
[355541538,1741248644389,-2380.28,0.00011556,2]
[355541539,1741248644398,-1085.62,0.00011556,2]
[355541540,1741248644408,-549.06092191,0.00011556,2]
[355541541,1741248644418,-500.0,0.00011556,2]
[355541542,1741248644428,-500.0,0.00011556,2]
[355541543,1741248644438,-665.71,0.00011556,2]
[355541544,1741248644447,-511.91219026,0.00011556,2]
[355541545,1741248644457,-500.0,0.00011556,2]
[355541546,1741248644467,-500.0,0.00011556,2]
[355541547,1741248644476,-500.0,0.00011556,2]
[355541548,1741248644486,-643.95,0.00011556,2]
[355541549,1741248644495,-1246.12,0.00011556,2]
[355541550,1741248644506,-733.1,0.00011556,2]
[355541551,1741248644516,-500.0,0.00011556,2]
[355541552,1741248644525,-500.0,0.00011556,2]
[355541553,1741248644534,-500.0,0.00011556,2]
[355541554,1741248644544,-500.0,0.00011556,2]
[355541555,1741248644554,-603.93,0.00011556,2]
[355541556,1741248644563,-500.0,0.00011556,2]
[355541557,1741248644573,-920.12,0.00011556,2]
[355541558,1741248644583,-500.0,0.00011556,2]
[355541559,1741248644592,-500.0,0.00011556,2]
[355541560,1741248644602,-500.0,0.00011556,2]
[355541561,1741248644612,-500.0,0.00011556,2]
[355541562,1741248644622,-500.0,0.00011556,2]
[355541563,1741248644632,-1168.42,0.00011556,2]
[355541564,1741248644642,-524.97384144,0.00011556,2]
[355541565,1741248644652,-7001.99,0.00011556,2]
[355541566,1741248644662,-500.0,0.00011556,2]
[355541567,1741248644671,-265.70963895,0.00011556,2]
[355541568,1741248644680,-500.0,0.00011556,2]
[355541569,1741248644690,-560.26385908,0.00011556,2]
[355541570,1741248644699,-500.0,0.00011556,2]
[355541571,1741248644709,-500.0,0.00011556,2]
[355541572,1741248644720,-500.0,0.00011556,2]
[355541573,1741248644730,-500.0,0.00011556,2]
[355541574,1741248644739,-502.40202293,0.00011556,2]
[355541575,1741248644749,-500.0,0.00011556,2]
[355541576,1741248644759,-500.0,0.00011556,2]
[355541577,1741248644768,-500.0,0.00011556,2]
[355541578,1741248644778,-716.24,0.00011556,2]
[355541579,1741248644786,-500.0,0.00011556,2]
[355541580,1741248644796,-500.0,0.00011556,2]
[355541581,1741248644805,-500.0,0.00011556,2]
[355541582,1741248644821,-501.16554797,0.00011556,2]
[355541583,1741248644830,-165.79642963,0.00011556,2]
[355541584,1741248644839,-500.0,0.00011556,2]
[355541585,1741248644849,-500.0,0.00011556,2]
[355541586,1741248644859,-500.0,0.00011556,2]
[355541587,1741248644869,-500.0,0.00011556,2]
[355541588,1741248644878,-500.0,0.00011556,2]
[355541589,1741248644888,-500.0,0.00011556,2]
[355541590,1741248644898,-1205.68,0.00011556,2]
[355541591,1741248644908,-500.0,0.00011556,2]
[355541592,1741248644918,-618.7,0.00011556,2]
[355541593,1741248644927,-1514.8,0.00011556,2]
[355541594,1741248644936,-500.0,0.00011556,2]
[355541595,1741248644947,-500.0,0.00011556,2]
[355541596,1741248644956,-500.0,0.00011556,2]
[355541597,1741248644965,-502.91,0.00011556,2]
[355541598,1741248644975,-500.0,0.00011556,2]
[355541599,1741248644985,-1094.69,0.00011556,2]
[355541600,1741248644995,-500.0,0.00011556,2]
[355541601,1741248645005,-500.0,0.00011556,2]
[355541602,1741248645015,-500.0,0.00011556,2]
[355541603,1741248645026,-500.0,0.00011556,2]
[355541604,1741248645036,-500.0,0.00011556,2]
[355541605,1741248645046,-500.0,0.00011556,2]
[355541606,1741248645057,-1293.25,0.00011556,2]
[355541607,1741248645067,-500.0,0.00011557,2]
[355541608,1741248645077,-506.10231084,0.00011557,2]
[355541609,1741248645088,-505.03672204,0.00011557,2]
[355541610,1741248645099,-515.30946201,0.00011557,2]
[355541611,1741248645113,-503.50565259,0.00011557,2]
[355541612,1741248645123,-504.38757117,0.00011557,2]
[355541613,1741248645134,-500.0,0.00011557,2]
[355541614,1741248645146,-500.0,0.00011557,2]
[355541615,1741248645396,-500.0,0.00011557,2]
[355541616,1741248645407,-500.0,0.00011557,2]
[355541617,1741248645417,-501.58527174,0.00011557,2]
[355541618,1741248645426,-500.0,0.00011557,2]
[355541619,1741248645436,-500.0,0.00011557,2]
[355541620,1741248645445,-500.0,0.00011557,2]
[355541621,1741248645455,-500.0,0.00011557,2]
[355541622,1741248645466,-500.0,0.00011557,2]
[355541623,1741248645476,-350.0,0.00011557,2]
[355541624,1741248645485,-500.0,0.00011557,2]
[355541625,1741248645498,-500.0,0.00011557,2]
[355541626,1741248645507,-220.77766333,0.00011557,2]
[355541627,1741248645517,-500.0,0.00011557,2]
[355541628,1741248645527,-500.0,0.00011557,2]
[355541629,1741248645537,-500.0,0.00011557,2]
[355541630,1741248645547,-500.0,0.00011557,2]
[355541631,1741248645556,-500.0,0.00011557,2]
[355541632,1741248645566,-741.55,0.00011557,2]
[355541633,1741248645575,-627.55650158,0.00011557,2]
[355541634,1741248645585,-500.0,0.00011557,2]
[355541636,1741248645594,-500.0,0.00011557,2]
[355541638,1741248645604,-500.0,0.00011557,2]
[355541640,1741248645614,-503.64814098,0.00011557,2]
[355541642,1741248645623,-500.0,0.00011557,2]
[355541644,1741248645632,-500.0,0.00011557,2]
[355541646,1741248645642,-500.0,0.00011557,2]
[355541648,1741248645651,-500.0,0.00011557,2]
[355541650,1741248645660,-502.48085958,0.00011557,2]
[355541651,1741248645670,-500.0,0.00011557,2]
[355541653,1741248645679,-500.0,0.00011557,2]
[355541655,1741248645688,-500.0,0.00011557,2]
[355541657,1741248645698,-503.56459611,0.00011557,2]
[355541659,1741248645707,-500.0,0.00011557,2]
[355541660,1741248645716,-504.73951948,0.00011557,2]
[355541661,1741248645725,-500.0,0.00011557,2]
[355541662,1741248645736,-517.83298047,0.00011557,2]
[355541663,1741248645745,-504.38745807,0.00011557,2]
[355541664,1741248645757,-501.00639228,0.00011557,2]
[355541665,1741248645766,-519.37588532,0.00011557,2]
[355541666,1741248645775,-500.0,0.00011557,2]
[355541667,1741248645785,-500.0,0.00011557,2]
[355541668,1741248645795,-500.0,0.00011557,2]
[355541669,1741248645804,-500.0,0.00011557,2]
[355541670,1741248645814,-504.75948847,0.00011557,2]
[355541671,1741248645823,-634.17100355,0.00011557,2]
[355541672,1741248645833,-501.09740227,0.00011557,2]
[355541673,1741248645842,-500.0,0.00011557,2]
[355541674,1741248645851,-505.93144079,0.00011557,2]
[355541675,1741248645863,-500.0,0.00011557,2]
[355541676,1741248645872,-500.0,0.00011557,2]
[355541677,1741248645881,-387.89927591,0.00011557,2]
[355541678,1741248645891,-500.0,0.00011557,2]
[355541679,1741248645900,-522.61,0.00011557,2]
[355541680,1741248645910,-500.0,0.00011557,2]
[355541681,1741248645921,-500.0,0.00011557,2]
[355541682,1741248645931,-500.0,0.00011557,2]
[355541683,1741248645942,-500.0,0.00011557,2]
[355541684,1741248645952,-502.43416205,0.00011557,2]
[355541685,1741248645962,-500.0,0.00011557,2]
[355541686,1741248645973,-511.67468821,0.00011557,2]
[355541687,1741248645982,-506.52345344,0.00011557,2]
[355541688,1741248645992,-500.0,0.00011557,2]
[355541689,1741248646001,-500.0,0.00011557,2]
[355541690,1741248646013,-500.0,0.00011557,2]
[355541691,1741248646023,-500.0,0.00011557,2]
[355541692,1741248646033,-500.0,0.00011557,2]
[355541693,1741248646043,-500.0,0.00011557,2]
[355541694,1741248646053,-503.06753527,0.00011557,2]
[355541695,1741248646063,-500.0,0.00011557,2]
[355541696,1741248646073,-565.53183782,0.00011557,2]
[355541697,1741248646082,-500.0,0.00011557,2]
[355541698,1741248646092,-500.0,0.00011557,2]
[355541699,1741248646101,-500.0,0.00011557,2]
[355541700,1741248646115,-500.0,0.00011557,2]
[355541701,1741248646124,-500.0,0.00011557,2]
[355541702,1741248646134,-500.0,0.00011557,2]
[355541703,1741248646144,-500.0,0.00011557,2]
[355541704,1741248646155,-500.0,0.00011557,2]
[355541705,1741248646164,-500.0,0.00011557,2]
[355541706,1741248646174,-500.0,0.00011557,2]
[355541707,1741248646185,-500.0,0.00011557,2]
[355541708,1741248646194,-500.0,0.00011557,2]
[355541709,1741248646204,-500.0,0.00011557,2]
[355541710,1741248646213,-500.0,0.00011557,2]
[355541711,1741248646223,-500.0,0.00011557,2]
[355541712,1741248646232,-335.01677838,0.00011557,2]
[355541713,1741248646242,-500.0,0.00011557,2]
[355541714,1741248646252,-500.0,0.00011557,2]
[355541715,1741248646263,-500.0,0.00011557,2]
[355541716,1741248646272,-500.0,0.00011557,2]
[355541717,1741248646282,-500.0,0.00011557,2]
[355541719,1741248646291,-500.0,0.00011557,2]
[355541721,1741248646300,-500.0,0.00011557,2]
[355541723,1741248646310,-500.0,0.00011557,2]
[355541725,1741248646319,-158.663893,0.00011557,2]
[355541727,1741248646328,-372.58150139,0.00011557,2]
[355541728,1741248646339,-500.0,0.00011557,2]
[355541729,1741248646348,-500.0,0.00011557,2]
[355541730,1741248646357,-500.0,0.00011557,2]
[355541731,1741248646367,-500.0,0.00011557,2]
[355541732,1741248646376,-500.0,0.00011557,2]
[355541733,1741248646385,-500.0,0.00011557,2]
[355541734,1741248646394,-500.0,0.00011557,2]
[355541735,1741248646403,-500.0,0.00011557,2]
[355541736,1741248646412,-500.0,0.00011557,2]
[355541737,1741248646422,-500.0,0.00011557,2]
[355541738,1741248646432,-500.0,0.00011557,2]
[355541739,1741248646441,-500.0,0.00011557,2]
[355541740,1741248646451,-500.0,0.00011557,2]
[355541741,1741248646460,-386.13464878,0.00011557,2]
[355541742,1741248646470,-500.0,0.00011557,2]
[355541743,1741248646479,-500.0,0.00011557,2]
[355541744,1741248646488,-500.0,0.00011557,2]
[355541745,1741248646499,-504.54,0.00011557,2]
[355541746,1741248646509,-500.0,0.00011557,2]
[355541747,1741248646519,-501.02133822,0.00011557,2]
[355541748,1741248646528,-500.0,0.00011557,2]
[355541749,1741248646538,-500.0,0.00011557,2]
[355541750,1741248646547,-500.0,0.00011557,2]
[355541751,1741248646557,-500.0,0.00011557,2]
[355541752,1741248646566,-500.0,0.00011557,2]
[355541753,1741248646576,-190.46751667,0.00011557,2]
[355541754,1741248646585,-500.0,0.00011557,2]
[355541755,1741248646594,-500.0,0.00011557,2]
[355541756,1741248646604,-522.34161159,0.00011557,2]
[355541757,1741248646613,-500.0,0.00011557,2]
[355541758,1741248646623,-500.0,0.00011557,2]
[355541759,1741248646632,-500.0,0.00011557,2]
[355541760,1741248646642,-500.0,0.00011557,2]
[355541761,1741248646652,-500.0,0.00011557,2]
[355541762,1741248646662,-500.0,0.00011557,2]
[355541763,1741248646671,-500.0,0.00011557,2]
[355541764,1741248646681,-500.0,0.00011557,2]
[355541765,1741248646691,-500.0,0.00011557,2]
[355541766,1741248646700,-500.0,0.00011557,2]
[355541767,1741248646709,-500.0,0.00011557,2]
[355541768,1741248646719,-500.0,0.00011557,2]
[355541769,1741248646730,-500.0,0.00011557,2]
[355541770,1741248646740,-701.85,0.00011557,2]
[355541771,1741248646749,-500.0,0.00011557,2]
[355541772,1741248646760,-500.0,0.00011557,2]
[355541773,1741248646770,-500.0,0.00011557,2]
[355541774,1741248646779,-500.0,0.00011557,2]
[355541775,1741248646789,-500.0,0.00011557,2]
[355541776,1741248646798,-512.12660946,0.00011557,2]
[355541777,1741248646807,-500.0,0.00011557,2]
[355541778,1741248646817,-500.0,0.00011557,2]
[355541779,1741248646827,-500.0,0.00011557,2]
[355541780,1741248646836,-647.4,0.00011557,2]
[355541781,1741248646846,-565.01,0.00011557,2]
[355541782,1741248646856,-521.13,0.00011557,2]
[355541783,1741248646865,-500.0,0.00011557,2]
[355541784,1741248646875,-625.61,0.00011557,2]
[355541785,1741248646885,-500.0,0.00011557,2]
[355541786,1741248646894,-500.0,0.00011557,2]
[355541787,1741248646904,-639.15,0.00011557,2]
[355541788,1741248646913,-500.0,0.00011557,2]
[355541789,1741248646923,-500.0,0.00011557,2]
[355541790,1741248646932,-580.9,0.00011557,2]
[355541791,1741248646942,-500.0,0.00011557,2]
[355541792,1741248646951,-1597.23,0.00011557,2]
[355541793,1741248646960,-995.32,0.00011557,2]
[355541794,1741248646970,-500.0,0.00011557,2]
[355541795,1741248646979,-1827.79,0.00011557,2]
[355541796,1741248646989,-518.16,0.00011557,2]
[355541797,1741248646999,-3392.4576355,0.00011557,2]
[355541798,1741248647015,-6180.6723645,0.00011557,2]
[355541799,1741248647025,-586.33,0.00011557,2]
[355541800,1741248647035,-500.0,0.00011557,2]
[355541801,1741248647045,-345.64,0.00011557,2]
[355541802,1741248647055,-517.62,0.00011557,2]
[355541803,1741248647064,-987.99,0.00011557,2]
[355541804,1741248647075,-500.0,0.00011557,2]
[355541805,1741248647084,-500.0,0.00011557,2]
[355541806,1741248647094,-1641.8,0.00011557,2]
[355541807,1741248647107,-500.0,0.00011557,2]
[355541808,1741248647118,-2447.86238305,0.00011557,2]
[355541809,1741248647138,-781.42893523,0.00011557,2]
[355541810,1741248647149,-1270.15857547,0.00011557,2]
[355541811,1741248647166,-359.083719,0.00011557,2]
[355541812,1741248647190,-5176.36638725,0.00011557,2]
[355541813,1741248647201,-500.0,0.00011557,2]
[355541814,1741248647212,-500.0,0.00011557,2]
[355541815,1741248647222,-500.0,0.00011557,2]
[355541816,1741248647232,-1547.89,0.00011557,2]
[355541817,1741248647242,-500.0,0.00011557,2]
[355541818,1741248647252,-1116.53,0.00011557,2]
[355541819,1741248647264,-500.0,0.00011557,2]
[355541820,1741248647274,-2624.12,0.00011557,2]
[355541821,1741248647284,-500.0,0.00011557,2]
[355541822,1741248647295,-500.0,0.00011557,2]
[355541823,1741248647306,-500.0,0.00011557,2]
[355541824,1741248647315,-1000.0,0.00011557,2]
[355541825,1741248647326,-508.12,0.00011557,2]
[355541826,1741248647336,-2385.43,0.00011557,2]
[355541827,1741248647346,-1151.81,0.00011557,2]
[355541828,1741248647357,-527.88160623,0.00011557,2]
[355541829,1741248647370,-484.16839377,0.00011557,2]
[355541830,1741248647380,-500.0,0.00011557,2]
[355541831,1741248647390,-514.31,0.00011557,2]
[355541832,1741248647401,-500.0,0.00011557,2]
[355541833,1741248647411,-500.0,0.00011557,2]
[355541834,1741248647421,-500.0,0.00011557,2]
[355541835,1741248647431,-500.0,0.00011557,2]
[355541836,1741248647441,-570.16,0.00011557,2]
[355541837,1741248647451,-746.34,0.00011557,2]
[355541838,1741248647460,-500.0,0.00011558,2]
[355541839,1741248647470,-500.0,0.00011558,2]
[355541840,1741248647479,-500.0,0.00011558,2]
[355541841,1741248647489,-87.82796564,0.00011573,2]
[355541842,1741248648542,-248.17032893,0.00011115,2]
[355541843,1741248648552,-154.74569804,0.00011456,2]
[355541844,1741248649231,-9007.32843651,0.00011456,2]
[355541845,1741248649243,-4577.65,0.00011456,2]
[355541846,1741248649259,-288.20826248,0.00011456,2]
[355541847,1741248649280,-21258.87850297,0.00011456,2]
[355541848,1741248649290,-72.18736236,0.00011573,2]
[355541849,1741248649301,-160.08379183,0.00011573,2]
[355541850,1741248649311,-160.32245859,0.00011573,2]
[355541851,1741248649320,-160.22888009,0.00011573,2]
[355541852,1741248649330,-502.80918366,0.00011573,2]
[355541853,1741248649340,-152.26684324,0.00011573,2]
[355541854,1741248649350,-500.39869251,0.00011573,2]
[355541855,1741248649359,-549.37,0.000116,2]
[355541856,1741248649369,-755.55363656,0.00011616,2]
[355541857,1741248649379,-200.0,0.00011656,2]
[355541858,1741248649388,-707.47,0.00011656,2]
[355541859,1741248649398,-500.0,0.00011656,2]
[355541860,1741248649407,-844.67,0.00011656,2]
[355541861,1741248649416,-153.3,0.00011723,2]
[355541862,1741248649427,-755.55363656,0.00011777,2]
[355541863,1741248649438,-14.15421309,0.00011804,2]
[355541864,1741248649449,-2346.00840048,0.00011804,2]
[355541865,1741248649459,-500.0,0.00011824,2]
[355541866,1741248649469,-795.9,0.00011829,2]
[355541867,1741248649478,-532.41,0.00011829,2]
[355541868,1741248649487,-878.76,0.00011829,2]
[355541869,1741248649497,-500.0,0.00011829,2]
[355541870,1741248649506,-679.60938633,0.00011829,2]
[355541871,1741248736160,500.0,9.084e-05,2]
[355541872,1741248738197,500.0,0.00010454,2]
[355541885,1741248758687,500.0,0.0001018,2]
[355541886,1741248936003,687.12,0.00010824,2]
[355541887,1741249033034,1000.0,0.00010767,2]
[355541888,1741249308594,172.42,0.00010654,2]
[355541889,1741249426922,961.09,8.751e-05,2]
[355541890,1741249504867,200.0,0.00010659,2]
[355541893,1741249637847,1078.56,0.00010607,2]
[355541915,1741249675254,250.0,0.00010607,2]
[355541941,1741249832138,-438.97982347,0.00010902,2]
[355541942,1741249832242,-287.61017653,0.00010902,2]
[355541943,1741249832251,-150.0,0.0001091,2]
[355541944,1741249832261,-150.0,0.00010956,2]
[355541945,1741249832270,-432.21771,0.00011,2]
[355541946,1741249832280,-8334.53619277,0.00011,2]
[355541947,1741249832289,-5029.0,0.00011,7]